[Event "Kwalificatie NJK A Groningen"]
[Site "Hoogkerk, Netherlands"]
[Date "2023.02.19"]
[Round "7.7"]
[White "Staal, Ryan"]
[Black "Bon, Gijs"]
[Result "0-1"]
[TimeControl "55 min. + 10 sec./zet"]
[WhiteElo "1911"]
[BlackElo "1669"]

1. e4 {[%clk 00:55:19]} c6 {[%clk 00:54:58]} {[%emt 00:00:23]} 2. d4 {[%clk
00:55:24]} {[%emt 00:00:05]} d5 {[%clk 00:55:05]} {[%emt 00:00:03]} 3. exd5
{[%clk 00:55:31]} {[%emt 00:00:03]} cxd5 {[%clk 00:55:12]} {[%emt 00:00:02]} 4.
Nc3 {[%clk 00:55:36]} {[%emt 00:00:05]} Nc6 {[%clk 00:53:56]} {[%emt 00:01:27]}
5. Nf3 {[%clk 00:55:35]} {[%emt 00:00:10]} Bg4 {[%clk 00:54:01]} {[%emt
00:00:05]} 6. Bb5 {[%clk 00:55:34]} {[%emt 00:00:12]} e6 {[%clk 00:54:00]}
{[%emt 00:00:10]} 7. h3 {[%clk 00:55:38]} {[%emt 00:00:07]} Bxf3 {[%clk
00:54:00]} {[%emt 00:00:10]} 8. Qxf3 {[%clk 00:55:45]} {[%emt 00:00:03]} Bd6
{[%clk 00:53:56]} {[%emt 00:00:14]} 9. O-O {[%clk 00:55:44]} {[%emt 00:00:10]}
Nge7 {[%clk 00:54:01]} {[%emt 00:00:05]} 10. Be3 {[%clk 00:55:40]} {[%emt
00:00:14]} a6 {[%clk 00:52:49]} {[%emt 00:01:23]} 11. Ba4 {[%clk 00:55:29]}
{[%emt 00:00:20]} b5 {[%clk 00:52:33]} {[%emt 00:00:26]} 12. Bb3 {[%clk
00:55:34]} {[%emt 00:00:05]} O-O {[%clk 00:52:10]} {[%emt 00:00:33]} 13. Rfd1
{[%clk 00:53:24]} {[%emt 00:02:20]} Qb6 {[%clk 00:51:08]} {[%emt 00:01:12]} 14.
a3 {[%clk 00:52:38]} {[%emt 00:00:56]} Na5 {[%clk 00:48:07]} {[%emt 00:03:12]}
15. Bg5 {[%clk 00:50:43]} {[%emt 00:02:04]} Nxb3 {[%clk 00:33:56]} {[%emt
00:14:21]} 16. Nxd5 {[%clk 00:48:36]} {[%emt 00:02:17]} Nxd5 {[%clk 00:32:51]}
{[%emt 00:01:14]} 17. Qxb3 {[%clk 00:48:32]} {[%emt 00:00:15]} Rac8 {[%clk
00:31:35]} {[%emt 00:01:26]} 18. c3 {[%clk 00:47:59]} {[%emt 00:00:44]} Rc4
{[%clk 00:30:47]} {[%emt 00:00:58]} 19. Rd3 {[%clk 00:45:27]} {[%emt 00:02:41]}
Rfc8 {[%clk 00:28:55]} {[%emt 00:02:02]} 20. Qd1 {[%clk 00:44:22]} {[%emt
00:01:15]} a5 {[%clk 00:24:31]} {[%emt 00:04:34]} 21. Qg4 {[%clk 00:43:02]}
{[%emt 00:01:30]} b4 {[%clk 00:23:56]} {[%emt 00:00:45]} 22. Bh6 {[%clk
00:42:27]} {[%emt 00:00:45]} Bf8 {[%clk 00:23:44]} {[%emt 00:00:23]} 23. Bxg7
{[%clk 00:41:38]} {[%emt 00:00:58]} f5 {[%clk 00:22:35]} {[%emt 00:01:19]} 24.
Qg5 {[%clk 00:39:36]} {[%emt 00:02:12]} Bxg7 {[%clk 00:22:37]} {[%emt
00:00:07]} 25. Rg3 {[%clk 00:39:16]} {[%emt 00:00:31]} Qb7 {[%clk 00:20:01]}
{[%emt 00:02:45]} 0-1

[Event "Kwalificatie NJK A Groningen"]
[Site "Hoogkerk, Netherlands"]
[Date "2023.02.19"]
[Round "7.8"]
[White "ToxopÃ©us, Carsten"]
[Black "Nitrauw, Peter"]
[Result "1/2-1/2"]
[TimeControl "55 min. + 10 sec./zet"]
[WhiteElo "1674"]
[BlackElo "1763"]

1. d4 {[%clk 00:55:16]} {[%emt 00:00:03]} Nf6 {[%clk 00:55:17]} {[%emt
00:00:04]} 2. c4 {[%clk 00:55:19]} {[%emt 00:00:07]} g6 {[%clk 00:55:22]}
{[%emt 00:00:05]} 3. Nc3 {[%clk 00:55:22]} {[%emt 00:00:07]} d5 {[%clk
00:55:28]} {[%emt 00:00:04]} 4. Bf4 {[%clk 00:54:56]} {[%emt 00:00:35]} Bg7
{[%clk 00:55:07]} {[%emt 00:00:31]} 5. Qb3 {[%clk 00:54:51]} {[%emt 00:00:16]}
c6 {[%clk 00:52:42]} {[%emt 00:02:35]} 6. Nf3 {[%clk 00:54:05]} {[%emt
00:00:55]} O-O {[%clk 00:52:31]} {[%emt 00:00:22]} 7. e3 {[%clk 00:54:08]}
{[%emt 00:00:06]} dxc4 {[%clk 00:46:28]} {[%emt 00:06:13]} 8. Bxc4 {[%clk
00:53:59]} {[%emt 00:00:19]} Qb6 {[%clk 00:46:16]} {[%emt 00:00:23]} 9. O-O
{[%clk 00:53:06]} {[%emt 00:01:02]} c5 {[%clk 00:44:46]} {[%emt 00:01:40]} 10.
dxc5 {[%clk 00:51:05]} {[%emt 00:02:11]} Qxb3 {[%clk 00:43:06]} {[%emt
00:01:51]} 11. Bxb3 {[%clk 00:51:06]} {[%emt 00:00:08]} Nc6 {[%clk 00:43:09]}
{[%emt 00:00:07]} 12. Ne5 {[%clk 00:47:53]} {[%emt 00:03:23]} Nxe5 {[%clk
00:42:53]} {[%emt 00:00:27]} 13. Bxe5 {[%clk 00:47:54]} {[%emt 00:00:07]} Bf5
{[%clk 00:42:33]} {[%emt 00:00:32]} 14. Nd5 {[%clk 00:46:40]} {[%emt 00:01:23]}
Nxd5 {[%clk 00:39:17]} {[%emt 00:03:26]} 15. Bxg7 {[%clk 00:46:38]} {[%emt
00:00:12]} Kxg7 {[%clk 00:37:34]} {[%emt 00:01:53]} 16. Bxd5 {[%clk 00:46:34]}
{[%emt 00:00:14]} Rac8 {[%clk 00:37:24]} {[%emt 00:00:21]} 17. Rac1 {[%clk
00:46:01]} {[%emt 00:00:41]} Rc7 {[%clk 00:36:52]} {[%emt 00:00:44]} 18. b4
{[%clk 00:45:33]} {[%emt 00:00:38]} 1/2-1/2

[Event "Kwalificatie NJK A Groningen"]
[Site "Hoogkerk, Netherlands"]
[Date "2023.02.19"]
[Round "7.9"]
[White "Lee, Jungbin"]
[Black "Buijnsters, Floris"]
[Result "1/2-1/2"]
[TimeControl "55 min. + 10 sec./zet"]
[WhiteElo "1640"]
[BlackElo "1746"]

1. d4 {[%clk 00:55:09]} {[%emt 00:00:11]} d5 {[%clk 00:55:10]} {[%emt
00:00:10]} 2. c4 {[%clk 00:55:04]} {[%emt 00:00:15]} e6 {[%clk 00:55:15]}
{[%emt 00:00:07]} 3. Nc3 {[%clk 00:55:06]} {[%emt 00:00:07]} Nf6 {[%clk
00:55:17]} {[%emt 00:00:08]} 4. Bg5 {[%clk 00:55:10]} {[%emt 00:00:05]} Be7
{[%clk 00:55:11]} {[%emt 00:00:16]} 5. e3 {[%clk 00:54:57]} {[%emt 00:00:22]}
O-O {[%clk 00:54:51]} {[%emt 00:00:32]} 6. Nf3 {[%clk 00:54:37]} {[%emt
00:00:29]} h6 {[%clk 00:54:50]} {[%emt 00:00:12]} 7. Bh4 {[%clk 00:54:26]}
{[%emt 00:00:21]} Ne4 {[%clk 00:54:42]} {[%emt 00:00:18]} 8. Bxe7 {[%clk
00:54:11]} {[%emt 00:00:24]} Qxe7 {[%clk 00:54:47]} {[%emt 00:00:06]} 9. cxd5
{[%clk 00:54:03]} {[%emt 00:00:18]} Nxc3 {[%clk 00:53:21]} {[%emt 00:01:36]} 10.
bxc3 {[%clk 00:54:04]} {[%emt 00:00:08]} exd5 {[%clk 00:52:45]} {[%emt
00:00:47]} 11. Bd3 {[%clk 00:53:02]} {[%emt 00:01:11]} Nd7 {[%clk 00:50:17]}
{[%emt 00:02:39]} 12. Qb3 {[%clk 00:51:52]} {[%emt 00:01:20]} c6 {[%clk
00:49:30]} {[%emt 00:00:56]} 13. Rc1 {[%clk 00:51:32]} {[%emt 00:00:30]} b5
{[%clk 00:41:28]} {[%emt 00:08:13]} 14. O-O {[%clk 00:49:15]} {[%emt 00:02:27]}
Nf6 {[%clk 00:36:07]} {[%emt 00:05:31]} 15. Ne5 {[%clk 00:48:47]} {[%emt
00:00:38]} Qd6 {[%clk 00:34:54]} {[%emt 00:01:21]} 16. f3 {[%clk 00:46:37]}
{[%emt 00:02:21]} Be6 {[%clk 00:33:08]} {[%emt 00:01:56]} 17. Kh1 {[%clk
00:44:17]} {[%emt 00:02:30]} Nd7 {[%clk 00:31:42]} {[%emt 00:01:36]} 18. Nxd7
{[%clk 00:43:04]} {[%emt 00:01:24]} Qxd7 {[%clk 00:28:41]} {[%emt 00:03:10]} 19.
Qc2 {[%clk 00:42:28]} {[%emt 00:00:46]} f5 {[%clk 00:28:07]} {[%emt 00:00:45]}
20. e4 {[%clk 00:42:29]} {[%emt 00:00:08]} fxe4 {[%clk 00:27:09]} {[%emt
00:01:08]} 21. fxe4 {[%clk 00:42:31]} {[%emt 00:00:09]} dxe4 {[%clk 00:25:53]}
{[%emt 00:01:26]} 22. Bxe4 {[%clk 00:42:39]} {[%emt 00:00:02]} Bd5 {[%clk
00:25:16]} {[%emt 00:00:46]} 23. Rf3 {[%clk 00:39:25]} {[%emt 00:03:25]} Bxe4
{[%clk 00:21:21]} {[%emt 00:04:04]} 24. Qxe4 {[%clk 00:39:32]} {[%emt
00:00:03]} Rxf3 {[%clk 00:20:45]} {[%emt 00:00:46]} 25. Qxf3 {[%clk 00:39:16]}
{[%emt 00:00:27]} Rf8 {[%clk 00:19:58]} {[%emt 00:00:56]} 26. Qe3 {[%clk
00:39:14]} {[%emt 00:00:13]} Qf7 {[%clk 00:19:05]} {[%emt 00:01:01]} 27. h3
{[%clk 00:39:09]} {[%emt 00:00:17]} Qxa2 {[%clk 00:18:29]} {[%emt 00:00:47]} 28.
Re1 {[%clk 00:39:05]} {[%emt 00:00:12]} Qd5 {[%clk 00:16:11]} {[%emt 00:02:28]}
29. Qg3 {[%clk 00:38:36]} {[%emt 00:00:40]} Rf7 {[%clk 00:13:06]} {[%emt
00:03:14]} 30. Re5 {[%clk 00:38:19]} {[%emt 00:00:27]} Qc4 {[%clk 00:12:37]}
{[%emt 00:00:39]} 31. Rc5 {[%clk 00:37:37]} {[%emt 00:00:52]} Qe6 {[%clk
00:10:45]} {[%emt 00:01:58]} 32. Re5 {[%clk 00:36:12]} {[%emt 00:01:39]} Qc4
{[%clk 00:10:14]} {[%emt 00:00:42]} 33. Rc5 {[%clk 00:35:36]} {[%emt 00:00:46]}
Qf1+ {[%clk 00:06:52]} {[%emt 00:03:31]} 34. Kh2 {[%clk 00:35:45]} {[%emt
00:00:01]} Qf6 {[%clk 00:06:51]} {[%emt 00:00:10]} 35. Qb8+ {[%clk 00:35:21]}
{[%emt 00:00:35]} Kh7 {[%clk 00:06:47]} {[%emt 00:00:15]} 36. Qc8 {[%clk
00:35:25]} {[%emt 00:00:06]} Qd6+ {[%clk 00:05:08]} {[%emt 00:01:48]} 37. Kg1
{[%clk 00:34:20]} {[%emt 00:01:16]} Rc7 {[%clk 00:04:42]} {[%emt 00:00:36]} 38.
Qa8 {[%emt 00:03:10]} 1/2-1/2

[Event "Kwalificatie NJK A Groningen"]
[Site "Hoogkerk, Netherlands"]
[Date "2023.02.19"]
[Round "7.10"]
[White "Jovanovic, Luka"]
[Black "Van Den Berg, Mees"]
[Result "0-1"]
[TimeControl "55 min. + 10 sec./zet"]
[WhiteElo "1593"]
[BlackElo "1702"]

1. d4 {[%clk 00:55:13]} {[%emt 00:00:06]} d5 {[%clk 00:55:01]} {[%emt
00:00:19]} 2. c4 {[%clk 00:55:19]} {[%emt 00:00:05]} c6 {[%clk 00:55:06]}
{[%emt 00:00:04]} 3. Nf3 {[%clk 00:55:26]} {[%emt 00:00:03]} Nf6 {[%clk
00:55:12]} {[%emt 00:00:04]} 4. Nc3 {[%clk 00:55:32]} {[%emt 00:00:05]} a6
{[%clk 00:55:13]} {[%emt 00:00:08]} 5. cxd5 {[%clk 00:55:25]} {[%emt 00:00:18]}
cxd5 {[%clk 00:55:18]} {[%emt 00:00:05]} 6. Bg5 {[%clk 00:55:13]} {[%emt
00:00:17]} Nc6 {[%clk 00:52:54]} {[%emt 00:02:38]} 7. e3 {[%clk 00:55:14]}
{[%emt 00:00:10]} Ne4 {[%clk 00:51:30]} {[%emt 00:01:33]} 8. Nxe4 {[%clk
00:53:58]} {[%emt 00:01:27]} dxe4 {[%clk 00:51:35]} {[%emt 00:00:05]} 9. Nd2
{[%clk 00:53:25]} {[%emt 00:00:42]} Qa5 {[%clk 00:49:14]} {[%emt 00:02:31]} 10.
Bf4 {[%clk 00:52:41]} {[%emt 00:00:55]} Bf5 {[%clk 00:45:28]} {[%emt 00:03:56]}
11. Be2 {[%clk 00:50:43]} {[%emt 00:02:08]} e5 {[%clk 00:42:07]} {[%emt
00:03:31]} 12. dxe5 {[%clk 00:50:02]} {[%emt 00:00:51]} Rd8 {[%clk 00:42:01]}
{[%emt 00:00:15]} 13. Qc2 {[%clk 00:46:44]} {[%emt 00:03:27]} Rxd2 {[%clk
00:41:50]} {[%emt 00:00:22]} 14. b4 {[%clk 00:45:58]} {[%emt 00:00:56]} Bxb4
{[%clk 00:41:40]} {[%emt 00:00:21]} 15. Qc1 {[%clk 00:43:41]} {[%emt 00:02:37]}
0-1

[Event "Kwalificatie NJK A Groningen"]
[Site "Hoogkerk, Netherlands"]
[Date "2023.02.19"]
[Round "7.11"]
[White "Lankester, Felix"]
[Black "Pijls, Coun"]
[Result "1/2-1/2"]
[TimeControl "55 min. + 10 sec./zet"]
[WhiteElo "1600"]
[BlackElo "1651"]

1. Nf3 {[%emt 00:00:11]} Nf6 {[%emt 00:00:13]} 2. d4 {[%emt 00:00:07]} g6
{[%emt 00:00:25]} 3. g3 {[%emt 00:00:49]} Bg7 {[%emt 00:00:24]} 4. Bg2 {[%emt
00:00:08]} d5 {[%emt 00:00:46]} 5. c4 c6 {[%emt 00:00:16]} 6. Bf4 {[%emt
00:00:27]} Bf5 {[%emt 00:00:27]} 7. Qc1 {[%emt 00:01:34]} Nbd7 {[%emt
00:00:53]} 8. O-O {[%emt 00:00:30]} O-O {[%emt 00:00:19]} 9. Bh6 {[%emt
00:01:47]} Rc8 {[%emt 00:01:45]} 10. Re1 {[%emt 00:00:26]} dxc4 {[%emt
00:00:20]} 11. Bxg7 {[%emt 00:00:19]} Kxg7 {[%emt 00:00:07]} 12. a4 {[%emt
00:01:33]} c5 {[%emt 00:04:33]} 13. Qxc4 {[%emt 00:01:44]} Nb6 {[%emt
00:01:09]} 14. Qb5 {[%emt 00:01:52]} cxd4 {[%emt 00:03:21]} 15. Nbd2 {[%emt
00:02:47]} Re8 {[%emt 00:02:15]} 16. a5 {[%emt 00:00:18]} Bd7 {[%emt 00:00:33]}
17. Qb4 {[%emt 00:02:12]} Nbd5 {[%emt 00:03:04]} 18. Qxd4 {[%emt 00:01:08]} a6
{[%emt 00:00:48]} 19. e4 {[%emt 00:00:41]} e5 {[%emt 00:02:55]} 20. Nxe5 {[%emt
00:00:57]} Nc7 {[%emt 00:01:41]} 21. Nxd7 {[%emt 00:02:51]} Qxd7 {[%emt
00:00:20]} 22. Qxd7 {[%emt 00:00:03]} Nxd7 {[%emt 00:00:02]} 23. Rac1 {[%emt
00:00:18]} Ne5 {[%emt 00:00:33]} 24. Bh3 {[%emt 00:06:13]} Rcd8 {[%emt
00:04:45]} 25. Red1 {[%emt 00:01:04]} Nb5 {[%emt 00:04:16]} 26. Nb3 {[%emt
00:04:14]} Rxd1+ {[%emt 00:02:52]} 27. Rxd1 {[%emt 00:00:18]} Nc4 {[%emt
00:00:06]} 28. Rd7 {[%emt 00:01:56]} Rxe4 {[%emt 00:02:09]} 29. Nc5 {[%emt
00:00:54]} Re1+ {[%emt 00:01:51]} 30. Kg2 {[%emt 00:00:12]} Kf6 {[%emt
00:02:30]} 31. Rxb7 {[%emt 00:00:42]} Nxa5 {[%emt 00:04:06]} 32. Rb6+ {[%emt
00:00:36]} Kg7 {[%emt 00:00:12]} 33. Nxa6 {[%emt 00:01:59]} Nd4 {[%emt
00:00:51]} 34. b4 {[%emt 00:01:28]} Nc4 {[%emt 00:00:52]} 35. Rb8 {[%emt
00:02:38]} Rb1 {[%emt 00:01:43]} 36. Bd7 {[%emt 00:01:16]} Rb2 {[%emt
00:01:31]} 37. g4 {[%emt 00:00:13]} Ne5 {[%emt 00:01:06]} 38. Nc5 {[%emt
00:01:07]} Nxd7 {[%emt 00:00:49]} 39. Nxd7 {[%emt 00:00:05]} Nc6 {[%emt
00:00:27]} 40. Rb6 {[%emt 00:00:58]} Nxb4 {[%emt 00:00:16]} 41. Nc5 {[%emt
00:00:03]} Nd3 {[%emt 00:00:13]} 42. Rxb2 {[%emt 00:01:27]} Nxb2 {[%emt
00:00:05]} 43. h4 {[%emt 00:00:54]} 1/2-1/2